bitfinex/quotes_BTCUSD_20220226
["timestamp","ask_amount","ask_price","bid_price","bid_amount"]
[1645883036559,0.0002934,39177.0,39174.0,0.85]
[1645883036756,0.0002934,39177.0,39176.0,0.02703516]
[1645883037058,0.0033,39180.0,39176.0,0.02703516]
[1645883037256,0.0002934,39177.0,39176.0,0.02703516]
[1645883038261,0.0033,39180.0,39176.0,0.02703516]
[1645883038461,0.00029339,39178.0,39176.0,0.02703516]
[1645883039463,0.001,39178.0,39176.0,0.02703516]
[1645883040111,0.001,39178.0,39175.0,0.02703516]
[1645883040310,0.001,39178.0,39177.0,0.02703516]
[1645883040710,0.0033,39180.0,39177.0,0.02703516]
[1645883040912,0.00029339,39179.0,39177.0,0.02703516]
[1645883041812,0.0033,39180.0,39177.0,0.02703516]
[1645883042211,0.00359339,39180.0,39177.0,0.02703516]
[1645883043019,0.0033,39180.0,39177.0,0.02703516]
[1645883043211,0.00359339,39180.0,39177.0,0.02703516]
[1645883043666,0.00459339,39180.0,39177.0,0.02703516]
[1645883044266,0.0043,39180.0,39177.0,0.02703516]
[1645883044568,0.00459339,39180.0,39177.0,0.02703516]
[1645883044766,0.00359339,39180.0,39176.0,0.02703516]
[1645883045369,0.0033,39180.0,39176.0,0.02703516]
[1645883045567,0.0043,39180.0,39176.0,0.02703516]
[1645883045967,0.00459339,39180.0,39176.0,0.02703516]
[1645883046570,0.0043,39180.0,39176.0,0.02703516]
[1645883046769,0.0033,39180.0,39173.0,0.1727454]
[1645883046969,0.0033,39180.0,39167.0,0.3]
[1645883046970,0.09999999,39177.0,39171.0,0.02703516]
[1645883047420,0.09999999,39177.0,39168.0,0.02703516]
[1645883047620,0.10199999,39177.0,39168.0,0.02703516]
[1645883048021,0.10199999,39177.0,39170.0,0.13119934]
[1645883048219,0.00029341,39174.0,39170.0,0.13119934]
[1645883049019,0.002,39177.0,39170.0,0.13119934]
[1645883049520,0.00029341,39174.0,39170.0,0.13119934]
[1645883050319,0.1563,39178.0,39170.0,0.13075134]
[1645883050524,0.00029341,39174.0,39170.0,0.13075134]
[1645883051361,0.09014914,39180.0,39173.0,0.02703516]
[1645883051562,0.003,39179.0,39171.0,0.02703516]
[1645883051764,0.00029341,39174.0,39173.0,0.02703516]
[1645883052764,0.0033,39180.0,39178.0,0.1311369]
[1645883053263,0.09999999,39179.0,39171.0,0.02703516]
[1645883053464,0.09999999,39177.0,39171.0,0.02703516]
[1645883054267,0.00029341,39176.0,39171.0,0.02703516]
[1645883055111,0.09999999,39177.0,39171.0,0.02703516]
[1645883055406,0.00029341,39175.0,39171.0,0.02703516]
[1645883056207,0.09999999,39177.0,39171.0,0.02703516]
[1645883056610,0.00029341,39175.0,39169.0,0.02703516]
[1645883056815,0.09999999,39173.0,39169.0,0.02703516]
[1645883057515,0.10299999,39173.0,39165.0,0.307]
[1645883057714,0.10329341,39173.0,39167.0,0.02703516]
[1645883058313,0.10329341,39173.0,39165.0,0.1132]
[1645883058765,0.09999999,39173.0,39165.0,0.1132]
[1645883058963,0.00029343,39171.0,39165.0,0.1132]
[1645883059565,0.00329343,39171.0,39165.0,0.1132]
[1645883059766,0.00329343,39171.0,39165.0,0.14023516]
[1645883059967,0.003,39171.0,39165.0,0.14023516]
[1645883060164,0.00029343,39170.0,39165.0,0.14023516]
[1645883060764,0.00029343,39170.0,39165.0,0.1132]
[1645883061267,0.00029369,39170.0,39165.0,0.1132]
[1645883061666,0.00329369,39170.0,39169.0,0.02703516]
[1645883062065,0.00329369,39170.0,39165.0,0.1132]
[1645883062317,0.003,39170.0,39165.0,0.1132]
[1645883062920,0.00013372,39171.0,39165.0,0.1132]
[1645883063522,0.00013372,39171.0,39160.0,0.02703516]
[1645883063523,0.003,39171.0,39160.0,0.02703516]
[1645883063721,0.09999999,39169.0,39160.0,0.02703516]
[1645883064524,0.09999999,39169.0,39161.0,0.14076173]
[1645883065721,0.09999999,39169.0,39160.0,0.02703516]
[1645883066964,0.09999999,39169.0,39163.0,0.14031916]
[1645883067366,0.00032667,39170.0,39165.0,0.02703516]
[1645883067567,0.00032667,39170.0,39163.0,0.14031916]
[1645883068166,0.002,39169.0,39163.0,0.14031916]
[1645883068366,0.002,39169.0,39162.0,7.024e-05]
[1645883069467,0.1,39172.0,39162.0,7.024e-05]
[1645883069671,0.09999999,39170.0,39163.0,0.02703516]
[1645883069914,0.00030132,39170.0,39164.0,0.02703516]
[1645883070108,0.00030132,39170.0,39163.0,0.02703516]
[1645883070510,0.00230132,39170.0,39163.0,0.02703516]
[1645883070707,0.002,39170.0,39163.0,0.02703516]
[1645883070907,0.00230132,39170.0,39163.0,0.02703516]
[1645883071509,0.00230132,39170.0,39163.0,0.02658656]
[1645883071709,0.00030132,39170.0,39163.0,0.02658656]
[1645883071908,0.1563,39171.0,39163.0,0.02658656]
[1645883072214,0.00030262,39170.0,39162.0,0.17586816]
[1645883072510,0.00030262,39170.0,39163.0,0.02658656]
[1645883072908,0.00030262,39170.0,39165.0,0.02658656]
[1645883073108,0.1583,39171.0,39163.0,0.02658656]
[1645883073308,0.00029259,39170.0,39163.0,0.02658656]
[1645883074066,0.00029259,39170.0,39160.0,0.02658656]
[1645883074067,0.09999999,39165.0,39160.0,0.02658656]
[1645883074264,0.09999999,39166.0,39160.0,0.02658656]
[1645883075369,0.1563,39168.0,39161.0,0.02658656]
[1645883075567,0.05,39167.0,39161.0,0.02658656]
[1645883075866,0.1563,39168.0,39164.0,0.02658656]
[1645883078413,0.1563,39168.0,39164.0,0.02758656]
[1645883079214,0.1563,39168.0,39164.0,0.001]
[1645883079414,0.1563,39168.0,39167.0,0.02658656]
[1645883079615,0.00029347,39170.0,39167.0,0.40435156]
[1645883079814,0.00029347,39170.0,39169.0,0.02658656]
[1645883080015,0.00029347,39170.0,39169.0,0.535514]
[1645883080415,0.001,39175.0,39169.0,0.536514]
[1645883080614,0.00013473,39171.0,39169.0,0.50992744]
[1645883080815,0.00013473,39171.0,39169.0,0.536514]
[1645883081564,0.001,39175.0,39169.0,0.536514]
[1645883081761,0.00013473,39172.0,39169.0,0.157749]
[1645883081961,0.00013473,39172.0,39170.0,0.377765]
[1645883082765,0.001,39177.0,39176.0,0.02658656]
[1645883083365,0.001,39177.0,39173.0,0.02658656]
[1645883083563,0.001,39177.0,39170.0,0.377765]
[1645883083763,0.0033,39180.0,39169.0,0.13116244]
[1645883083963,0.0033,39180.0,39176.0,0.02658656]
[1645883085415,0.00362683,39180.0,39175.0,0.15263685]
[1645883085813,0.00362683,39180.0,39172.0,0.02658656]
[1645883086415,0.0053,39180.0,39172.0,0.02658656]
[1645883086616,0.00032684,39178.0,39172.0,0.02658656]
[1645883086816,0.00032684,39178.0,39172.0,0.17617359]
[1645883087016,0.00032684,39178.0,39173.0,0.02658656]
[1645883087616,0.0053,39180.0,39176.0,0.02658656]
[1645883087617,0.0033,39180.0,39176.0,0.02658656]
[1645883087817,0.00031371,39177.0,39176.0,0.02658656]
[1645883088019,0.00031371,39177.0,39172.0,0.17617359]
[1645883088217,0.00031371,39177.0,39176.0,0.02658656]
[1645883088666,0.0033,39180.0,39176.0,0.02658656]
[1645883088868,0.0033,39180.0,39177.0,0.377765]
[1645883089071,0.0033,39180.0,39179.0,0.377765]
[1645883089669,0.0026,39181.0,39179.0,0.377765]
[1645883090073,0.0026,39181.0,39179.0,0.6578996]
[1645883090271,0.00273249,39181.0,39179.0,0.6835496]
[1645883090469,0.00273249,39181.0,39179.0,0.6845496]
[1645883090677,0.00273249,39181.0,39179.0,0.6588996]
[1645883090869,0.00273249,39181.0,39179.0,0.53125329]
[1645883091270,0.0026,39181.0,39179.0,0.53125329]
[1645883091472,0.0026,39181.0,39180.0,0.3]
[1645883091672,0.0026,39181.0,39180.0,0.377765]
[1645883091874,0.0026,39181.0,39180.0,0.677765]
[1645883092330,0.0026,39181.0,39180.0,0.377765]
[1645883096570,0.0036,39181.0,39180.0,0.377765]
[1645883098070,0.0026,39181.0,39180.0,0.377765]
[1645883098476,0.0036,39181.0,39180.0,0.377765]
[1645883099675,0.0026,39181.0,39180.0,0.377765]
[1645883100513,0.0026,39181.0,39174.0,0.127666]
[1645883100715,0.0026,39181.0,39167.0,0.1151]
[1645883100914,0.09999999,39179.0,39172.0,0.02658656]
[1645883101117,0.3514,39178.0,39167.0,0.1151]
[1645883101321,0.3514,39178.0,39168.0,0.02658656]
[1645883101516,0.3514,39178.0,39169.0,0.13604421]
[1645883101819,0.3514,39178.0,39166.0,0.1999]
[1645883101820,0.42357,39178.0,39166.0,0.1999]
[1645883102017,0.09999999,39169.0,39166.0,0.1999]
[1645883102215,0.09999999,39171.0,39166.0,0.1999]
[1645883102415,0.1426665,39172.0,39165.0,0.02658656]
[1645883102614,0.3,39171.0,39165.0,0.02658656]
[1645883103669,0.00031483,39170.0,39165.0,0.02658656]
[1645883104470,0.3912665,39171.0,39165.0,0.02658656]
[1645883104669,0.00131483,39170.0,39165.0,0.02658656]
[1645883105670,0.001,39170.0,39165.0,0.02658656]
[1645883105870,0.00031484,39170.0,39165.0,0.00731356]
[1645883106869,0.3534,39175.0,39165.0,0.00731356]
[1645883107072,0.0912665,39169.0,39161.0,0.00731356]
[1645883107320,0.0912665,39167.0,39161.0,0.00731356]
[1645883107519,0.3,39166.0,39161.0,0.00731356]
[1645883108621,0.301,39166.0,39161.0,0.00731356]
[1645883108825,0.301,39166.0,39161.0,0.00231356]
[1645883109019,0.001,39166.0,39164.0,0.13480077]
[1645883109219,0.001,39166.0,39164.0,0.26960154]
[1645883109820,0.0912665,39167.0,39164.0,0.26960154]
[1645883110222,0.30031524,39170.0,39164.0,0.26960154]
[1645883110223,0.0912665,39166.0,39164.0,0.26960154]
[1645883110523,0.0912665,39166.0,39164.0,0.26460154]
[1645883112369,0.3,39165.0,39164.0,0.26460154]
[1645883112568,0.5077,39165.0,39164.0,0.26460154]
[1645883114168,0.5077,39165.0,39164.0,0.13480077]
[1645883114368,0.34797336,39165.0,39164.0,0.26460154]
[1645883114567,0.0514,39165.0,39164.0,0.26460154]
[1645883114816,0.3514,39165.0,39164.0,0.26460154]
[1645883118319,0.34968668,39165.0,39164.0,0.26460154]
[1645883122615,0.05068668,39165.0,39164.0,0.26460154]
[1645883122815,0.1912665,39166.0,39165.0,36.95573341]
[1645883123015,0.2426665,39166.0,39165.0,36.95573341]
[1645883123417,0.2426665,39166.0,39165.0,37.08553418]
[1645883123615,0.2426665,39166.0,39165.0,37.22033495]
[1645883126075,0.1426665,39166.0,39165.0,37.22033495]
[1645883126373,0.0912665,39166.0,39165.0,37.22033495]
[1645883126573,0.0942665,39166.0,39165.0,37.22033495]
[1645883127774,0.0912665,39166.0,39165.0,37.22033495]
[1645883128573,0.0922665,39166.0,39165.0,37.22033495]
[1645883129817,0.0912665,39166.0,39165.0,37.22033495]
[1645883130720,0.0922665,39166.0,39165.0,37.22033495]
[1645883131521,0.001,39166.0,39165.0,37.22033495]
[1645883131922,0.14156088,39170.0,39165.0,37.22033495]
[1645883132126,0.1,39170.0,39165.0,37.09053418]
[1645883132324,0.0912665,39169.0,39165.0,36.95573341]
[1645883132523,0.00029438,39170.0,39168.0,0.42363283]
[1645883132926,0.09156088,39170.0,39168.0,0.42363283]
[1645883133124,0.14156088,39170.0,39168.0,0.26460154]
[1645883133326,0.1912665,39170.0,39168.0,0.26460154]
[1645883135970,0.0514,39169.0,39168.0,0.26460154]
[1645883140125,0.19156036,39170.0,39168.0,0.26460154]
[1645883140317,0.19156036,39170.0,39168.0,0.13480077]
[1645883140517,0.1912665,39170.0,39165.0,36.95573341]
[1645883140718,0.1912665,39170.0,39169.0,0.12980077]
[1645883141194,0.1412665,39170.0,39169.0,0.12980077]
[1645883141394,0.1912665,39170.0,39169.0,0.12980077]
[1645883143395,0.1932665,39170.0,39169.0,0.12980077]
[1645883144698,0.00029467,39171.0,39169.0,0.12980077]
[1645883145421,0.0912665,39174.0,39169.0,0.12980077]
[1645883145816,0.00029424,39172.0,39170.0,0.13813722]
[1645883146518,0.0912665,39174.0,39170.0,0.13813722]
[1645883146718,0.00029424,39173.0,39170.0,0.13813722]
[1645883147517,0.00229424,39173.0,39170.0,0.13813722]
[1645883147717,0.002,39173.0,39170.0,0.13813722]
[1645883147922,0.00229383,39173.0,39170.0,0.13813722]
[1645883148667,0.00029383,39173.0,39170.0,0.13813722]
[1645883148867,0.0912665,39175.0,39170.0,0.13813722]
[1645883149074,0.1978,39179.0,39170.0,0.13813722]
[1645883149270,0.0002946,39173.0,39170.0,0.13813722]
[1645883149669,0.0002946,39173.0,39171.0,0.377765]
[1645883150070,0.002,39175.0,39171.0,0.377765]
[1645883150368,0.0002946,39174.0,39171.0,0.377765]
[1645883150573,0.0002946,39174.0,39173.0,0.377765]
[1645883150769,0.0002946,39174.0,39173.0,0.403415]
[1645883151168,0.0002946,39174.0,39173.0,0.66801654]
[1645883151370,0.0026,39181.0,39173.0,0.66801654]
[1645883151570,0.0026,39181.0,39180.0,0.15776352]
[1645883152070,0.0026,39181.0,39174.0,0.1157]
[1645883152326,0.0912665,39179.0,39174.0,0.1157]
[1645883152922,0.0915618,39179.0,39173.0,0.26460154]
[1645883153130,0.0915618,39179.0,39174.0,0.12606386]
[1645883153131,0.0002953,39179.0,39174.0,0.12606386]
[1645883153722,0.0026,39181.0,39174.0,0.12606386]
[1645883153923,0.0002953,39178.0,39174.0,0.12606386]
[1645883154724,0.0002953,39178.0,39175.0,0.377765]
[1645883154922,0.0026,39181.0,39174.0,0.12606386]
[1645883155122,0.0002952,39178.0,39174.0,0.12606386]
[1645883155522,0.0002952,39178.0,39174.0,0.12806386]
[1645883155726,0.0026,39181.0,39175.0,1.15]
[1645883156366,0.0026,39181.0,39178.0,0.13480077]
[1645883156567,0.0026,39181.0,39178.0,0.26460154]
[1645883156768,0.0026,39181.0,39178.0,0.25960154]
[1645883159672,0.0026,39181.0,39179.0,0.377765]
[1645883160126,0.00293616,39181.0,39179.0,0.377765]
[1645883160324,0.00293616,39181.0,39178.0,0.25960154]
[1645883160723,0.00293616,39181.0,39179.0,0.377765]
[1645883160928,0.0026,39181.0,39179.0,0.377765]
[1645883161124,0.0026,39181.0,39178.0,0.25960154]
[1645883161324,0.00293616,39181.0,39178.0,0.25960154]
[1645883161527,0.0033,39182.0,39181.0,36.95279725]
[1645883170120,0.00251413,39183.0,39181.0,36.95279725]
[1645883170121,0.00081413,39183.0,39181.0,36.95279725]
[1645883170522,0.0005,39183.0,39181.0,36.95279725]
[1645883170821,0.0005,39183.0,39182.0,0.55960154]
[1645883171084,0.0005,39183.0,39182.0,0.58525154]
[1645883171276,0.0011,39189.0,39183.0,1.527765]
[1645883171479,0.0011,39189.0,39184.0,0.3]
[1645883172476,0.0011,39189.0,39184.0,0.295]
[1645883172877,0.0011,39189.0,39185.0,0.377765]
[1645883173077,0.0011,39189.0,39187.0,0.377765]
[1645883173378,0.1021,39191.0,39189.0,1.553415]
[1645883173379,0.09700447,39191.0,39189.0,1.553415]
[1645883173580,0.09700447,39191.0,39190.0,0.29959]
[1645883173581,0.0011,39191.0,39190.0,0.29959]
[1645883173778,0.0011,39191.0,39190.0,0.703005]
[1645883173982,0.0969,39191.0,39190.0,0.703005]
[1645883174819,0.0011,39191.0,39190.0,0.703005]
[1645883175222,0.0033,39197.0,39191.0,1.527765]
[1645883175223,0.0015,39196.0,39191.0,1.527765]
[1645883175421,0.0015,39196.0,39193.0,0.377765]
[1645883176120,0.0013562,39196.0,39195.0,0.377765]
[1645883176525,0.0013562,39196.0,39194.0,0.25960154]
[1645883176920,0.0013562,39196.0,39195.0,0.377765]
[1645883177320,0.0013562,39196.0,39194.0,0.25960154]
[1645883178222,0.0013562,39196.0,39195.0,0.377765]
[1645883181374,0.0013562,39196.0,39195.0,0.63736654]
[1645883182173,0.0013562,39196.0,39195.0,0.66301654]
[1645883182919,0.0013562,39196.0,39195.0,0.63736654]
[1645883183218,0.0013562,39196.0,39195.0,0.66301654]
[1645883183417,0.0013562,39196.0,39195.0,0.63736654]
[1645883186067,0.0013562,39196.0,39195.0,0.66301654]
[1645883187167,0.0013562,39196.0,39195.0,0.66401654]
[1645883187969,0.0013562,39196.0,39195.0,0.93836654]
[1645883188367,0.0013562,39196.0,39195.0,0.63736654]
[1645883191428,0.00363647,39197.0,39196.0,36.95144105]
[1645883191630,0.00033647,39197.0,39196.0,37.50335554]
[1645883192028,0.00033647,39197.0,39196.0,37.63315631]
[1645883192232,0.0021,39198.0,39196.0,37.76295708]
[1645883192628,0.00243646,39198.0,39196.0,37.76295708]
[1645883193328,0.00243646,39198.0,39197.0,0.3]
[1645883193583,0.011,39199.0,39198.0,1.527765]
[1645883193882,0.01133646,39199.0,39198.0,1.527765]
[1645883194683,0.011,39199.0,39198.0,1.527765]
[1645883195086,1.71505302,39200.0,39199.0,1.527765]
[1645883195882,1.71489943,39200.0,39199.0,1.527765]
[1645883197320,1.71489943,39200.0,39199.0,1.65756577]
[1645883197523,1.71489943,39200.0,39199.0,1.78736654]
[1645883199422,1.71489943,39200.0,39199.0,0.25960154]
[1645883199823,1.80616593,39200.0,39199.0,0.25960154]
[1645883203472,1.71489943,39200.0,39199.0,0.25960154]
[1645883204923,1.71489943,39200.0,39199.0,0.12980077]
[1645883205322,1.70989943,39200.0,39199.0,0.25460154]
[1645883207126,0.00375844,39201.0,39200.0,35.24154162]
[1645883207733,0.00375844,39201.0,39200.0,35.37134239]
[1645883207928,0.0034206,39201.0,39200.0,35.37134239]
[1645883209570,0.00033783,39202.0,39201.0,1.15]
[1645883209869,0.00033783,39202.0,39201.0,1.45]
[1645883210275,0.05735485,39203.0,39201.0,1.45]
[1645883210471,0.05769268,39203.0,39201.0,1.45]
[1645883210669,0.05769268,39203.0,39202.0,0.12480077]
[1645883210869,0.05769268,39203.0,39202.0,0.42480077]
[1645883211068,0.05769268,39203.0,39202.0,0.12480077]
[1645883211272,0.05769268,39203.0,39202.0,0.26830585]
[1645883211470,0.05735485,39203.0,39202.0,0.26830585]
[1645883213122,0.05735485,39203.0,39202.0,0.39810662]
[1645883216773,0.04235485,39203.0,39202.0,0.39810662]
[1645883217771,0.0043,39208.0,39202.0,0.39810662]
[1645883217772,0.26841026,39211.0,39203.0,1.15]
[1645883217976,0.0862665,39211.0,39203.0,1.15]
[1645883218374,0.122,39213.0,39207.0,0.25460154]
[1645883218574,0.0862665,39210.0,39207.0,0.25460154]
[1645883218873,0.0032,39213.0,39208.0,0.17038684]
[1645883219274,0.0894665,39213.0,39208.0,0.17038684]
[1645883220124,0.0032,39213.0,39208.0,0.17038684]
[1645883220323,0.00445333,39212.0,39208.0,0.17038684]
[1645883221026,0.0043,39212.0,39208.0,0.17038684]
[1645883221231,0.0043,39212.0,39209.0,0.677765]
[1645883221433,0.00463779,39212.0,39209.0,0.677765]
[1645883221634,0.00463779,39212.0,39209.0,0.377765]
[1645883222231,0.0043,39212.0,39210.0,0.3]
[1645883222435,0.0043,39212.0,39211.0,0.377765]
[1645883222436,0.00463778,39212.0,39211.0,0.377765]
[1645883223430,0.0043,39212.0,39209.0,0.377765]
[1645883223680,0.0043,39212.0,39211.0,0.50256577]
[1645883224380,0.0043,39212.0,39211.0,0.80256577]
[1645883224680,0.0043,39212.0,39211.0,0.50256577]
[1645883224880,0.0043,39212.0,39211.0,0.80256577]
[1645883225281,0.00352132,39213.0,39212.0,35.23724162]
[1645883225884,0.0043,39215.0,39212.0,35.23724162]
[1645883225885,0.00382132,39215.0,39214.0,0.14500673]
[1645883227083,0.00382132,39215.0,39213.0,1.15]
[1645883228319,0.0862665,39214.0,39213.0,1.15]
[1645883228921,0.0862665,39214.0,39213.0,1.39960154]
[1645883229522,0.00382132,39215.0,39213.0,1.39960154]
[1645883229723,0.00415909,39215.0,39213.0,1.39960154]
[1645883230122,0.0862665,39214.0,39213.0,1.39960154]
[1645883231872,0.00382132,39215.0,39213.0,1.39960154]
[1645883232075,0.00415909,39215.0,39213.0,1.39960154]
[1645883232874,0.0862665,39214.0,39213.0,1.39960154]
[1645883233074,0.00382132,39215.0,39213.0,1.39960154]
[1645883233974,0.00382132,39215.0,39213.0,1.145]
[1645883234272,0.00382132,39215.0,39214.0,0.25460154]
[1645883235626,0.09008782,39215.0,39214.0,0.25460154]
[1645883236026,0.00382132,39215.0,39214.0,0.25460154]
[1645883237630,0.09008782,39215.0,39214.0,0.25460154]
[1645883239174,0.0022,39216.0,39215.0,35.1471538]
[1645883239375,0.00253777,39216.0,39215.0,35.1471538]
[1645883239573,0.00253777,39216.0,39215.0,35.31665795]
[1645883239774,0.00253777,39216.0,39215.0,35.44145872]
[1645883239974,0.00253777,39216.0,39215.0,35.57125949]
[1645883240175,0.0022,39216.0,39215.0,35.57125949]
[1645883242327,0.0022,39216.0,39215.0,35.40175534]
[1645883245631,0.09673776,39217.0,39215.0,35.40175534]
[1645883245632,0.04116449,39217.0,39215.0,35.40175534]
[1645883246078,0.04116449,39217.0,39215.0,35.1471538]
[1645883246275,0.04082673,39217.0,39216.0,0.25460154]
[1645883247377,0.001,39217.0,39216.0,0.25460154]
[1645883250525,0.0022,39223.0,39216.0,0.25460154]
[1645883250526,0.0935888,39228.0,39218.0,1.15]
[1645883250734,0.0935888,39228.0,39219.0,0.61644803]
[1645883250925,0.1648,39229.0,39219.0,0.61644803]
[1645883251122,0.0111,39229.0,39219.0,0.427765]
[1645883251626,0.0111,39229.0,39224.0,0.12980077]
[1645883254579,0.0111,39229.0,39225.0,0.677765]
[1645883254781,0.0011,39230.0,39226.0,1.15]
[1645883254980,0.0011,39230.0,39228.0,0.377765]
[1645883255180,0.0011,39230.0,39229.0,0.677765]
[1645883255381,0.0022,39238.0,39230.0,1.527765]
[1645883255581,0.0022,39238.0,39232.0,0.377765]
[1645883256183,0.0022,39238.0,39233.0,0.3]
[1645883256184,0.04077112,39236.0,39233.0,0.3]
[1645883256382,0.04077112,39236.0,39234.0,0.377765]
[1645883256580,0.04077112,39236.0,39234.0,0.477765]
[1645883256781,0.04077112,39236.0,39235.0,0.25460154]
[1645883256986,0.04077112,39236.0,39235.0,0.63236654]
[1645883257182,0.04061903,39236.0,39235.0,0.25460154]
[1645883257425,0.04061903,39236.0,39235.0,0.63236654]
[1645883257626,0.03561903,39236.0,39235.0,0.76572614]
[1645883257825,0.03561903,39236.0,39235.0,0.68796114]
[1645883258025,0.03561903,39236.0,39235.0,0.38796114]
[1645883258225,0.03561903,39236.0,39235.0,0.76572614]
[1645883258425,0.03561903,39236.0,39235.0,0.68796114]
[1645883258726,0.03561903,39236.0,39235.0,0.38296114]
[1645883258926,0.03561903,39236.0,39235.0,0.24960154]
[1645883259928,0.03561903,39236.0,39235.0,0.92736654]
[1645883260127,0.03561903,39236.0,39235.0,0.62736654]
[1645883260329,0.03561903,39236.0,39235.0,0.76669168]
[1645883261777,0.03561903,39236.0,39235.0,0.64689091]
[1645883262179,0.03561903,39236.0,39235.0,0.76669168]
[1645883263676,0.03561903,39236.0,39235.0,1.06669168]
[1645883263878,0.00143891,39237.0,39236.0,35.11153477]
[1645883264083,0.0022,39254.0,39242.0,1.162065]
[1645883264283,0.297924,39258.0,39242.0,1.162065]
[1645883264284,0.07229215,39257.0,39245.0,1.527765]
[1645883264483,0.179024,39258.0,39249.0,0.06371204]
[1645883264684,0.179024,39258.0,39250.0,0.729165]
[1645883264927,0.179024,39258.0,39250.0,0.967155]
[1645883265130,0.129024,39258.0,39252.0,0.377765]
[1645883265328,0.124024,39258.0,39255.0,0.377765]
[1645883265532,0.0999,39264.0,39255.0,0.377765]
[1645883265533,0.18544485,39291.0,39267.0,0.377765]
[1645883265734,0.1,39290.0,39269.0,0.377765]
[1645883265931,0.063695,39292.0,39270.0,0.3514]
[1645883266130,0.063695,39292.0,39265.0,0.02549]
[1645883266131,0.1,39278.0,39271.0,0.0514]
[1645883266331,0.1,39276.0,39266.0,0.0514]
[1645883266530,0.14969531,39271.0,39266.0,0.0514]
[1645883267032,0.14969531,39271.0,39261.0,0.002]
[1645883267235,0.14969531,39271.0,39263.0,0.5]
[1645883267236,0.24493531,39271.0,39263.0,0.5]
[1645883267431,0.34493531,39271.0,39261.0,0.002]
[1645883267630,0.1,39266.0,39261.0,0.002]
[1645883267832,0.1,39263.0,39261.0,0.002]
[1645883268034,0.1705,39263.0,39261.0,0.002]
[1645883268230,0.1705,39263.0,39252.0,0.3]
[1645883268231,0.1705,39263.0,39253.0,0.5]
[1645883268687,0.1,39259.0,39253.0,0.495]
[1645883268881,0.0999,39257.0,39245.0,0.17313662]
[1645883269082,0.14024264,39256.0,39253.0,0.001]
[1645883269683,0.24014264,39256.0,39253.0,0.001]
[1645883270084,0.0999,39256.0,39253.0,0.001]
[1645883270289,0.0999,39256.0,39252.0,0.28089569]
[1645883270290,0.0999,39256.0,39254.0,0.377765]
[1645883270686,0.0949,39256.0,39254.0,0.377765]
[1645883270885,0.09524019,39256.0,39254.0,0.377765]
[1645883271087,0.09624019,39256.0,39254.0,0.377765]
[1645883271687,0.0959,39256.0,39254.0,0.54329561]
[1645883272089,0.0959,39256.0,39254.0,0.53829561]
[1645883272332,0.0949,39256.0,39254.0,0.53829561]
[1645883272730,0.0949,39256.0,39255.0,0.49756577]
[1645883273330,0.0849,39256.0,39255.0,0.49756577]
[1645883274332,0.0849,39256.0,39255.0,0.49645877]
[1645883274533,0.0849,39256.0,39255.0,0.11980077]
[1645883274933,0.0849,39256.0,39255.0,0.49645877]
[1645883275137,0.0849,39256.0,39255.0,0.25060154]
[1645883275434,0.0849,39256.0,39255.0,0.62725954]
[1645883275634,0.0849,39256.0,39255.0,0.25060154]
[1645883275836,0.1350564,39256.0,39255.0,0.24423261]
[1645883276083,0.2350564,39256.0,39255.0,0.24423261]
[1645883276386,0.2350564,39256.0,39255.0,0.24323261]
[1645883276582,0.2988034,39256.0,39255.0,0.24323261]
[1645883276782,0.5637034,39256.0,39255.0,0.24323261]
[1645883276981,0.5647034,39256.0,39255.0,0.24323261]
[1645883277583,0.3148034,39256.0,39255.0,0.24323261]
[1645883277786,0.3148034,39256.0,39255.0,0.12980077]
[1645883277981,0.3148034,39256.0,39255.0,0.24323261]
[1645883277982,0.2148034,39256.0,39255.0,0.24323261]
[1645883278482,0.5637034,39256.0,39255.0,0.24323261]
[1645883278682,1.2062034,39256.0,39255.0,0.24323261]
[1645883279082,1.9401034,39256.0,39255.0,0.24323261]
[1645883279283,1.1558034,39256.0,39255.0,0.24323261]
[1645883279482,0.16407078,39257.0,39256.0,33.9433663]
[1645883279683,1.50747078,39257.0,39256.0,33.9433663]
[1645883279929,1.56950636,39257.0,39256.0,33.9433663]
[1645883280130,3.48099358,39257.0,39256.0,33.5607853]
[1645883280334,3.58089358,39257.0,39256.0,31.49276977]
[1645883280529,3.38109358,39257.0,39256.0,31.62257054]
[1645883280731,3.38109358,39257.0,39256.0,31.23996454]
[1645883281329,3.45773452,39257.0,39256.0,31.23996454]
[1645883281534,2.45773452,39257.0,39256.0,31.23996454]
[1645883283132,2.49561232,39257.0,39256.0,31.23996454]
[1645883283332,2.49561232,39257.0,39256.0,31.35339638]
[1645883283880,2.49561232,39257.0,39256.0,30.97081138]
[1645883284083,3.49561232,39257.0,39256.0,30.99486352]
[1645883284279,4.19561232,39257.0,39256.0,30.05677809]
[1645883284481,4.19561232,39257.0,39256.0,27.03084044]
[1645883284680,4.19912232,39257.0,39256.0,26.36458215]
[1645883284880,4.19912232,39257.0,39256.0,23.85096288]
[1645883285080,4.30002232,39257.0,39256.0,23.35389531]
[1645883285281,4.30002232,39257.0,39256.0,23.04406105]
[1645883285486,4.45392232,39257.0,39256.0,20.33588247]
[1645883285680,4.45392232,39257.0,39256.0,20.33474247]
[1645883285883,4.65372232,39257.0,39256.0,19.95129747]
[1645883286083,4.65372232,39257.0,39256.0,17.79728255]
[1645883286084,4.55031232,39257.0,39256.0,17.79728255]
[1645883286282,4.55031232,39257.0,39256.0,10.11888744]
[1645883286283,4.73952191,39257.0,39256.0,10.11888744]
[1645883286483,4.73952191,39257.0,39256.0,8.57490216]
[1645883286484,8.39034265,39257.0,39256.0,8.57490216]
[1645883286683,8.27683565,39257.0,39256.0,5.56676411]
[1645883286883,8.27683565,39257.0,39211.0,0.01]
[1645883286884,0.7843,39234.0,39211.0,0.01]
[1645883287085,0.127588,39232.0,39213.0,0.01019]
[1645883287328,0.127588,39232.0,39215.0,0.1294507]
[1645883287329,0.38528848,39231.0,39215.0,0.1294507]
[1645883287528,0.38528848,39231.0,39216.0,0.01018]
[1645883287833,0.1,39227.0,39216.0,0.01018]
[1645883288033,0.38528848,39226.0,39216.0,0.01018]
[1645883288228,0.45465848,39226.0,39216.0,0.01018]
[1645883288428,0.45465848,39226.0,39221.0,0.16517031]
[1645883289428,0.38528848,39226.0,39221.0,0.16517031]
[1645883291186,0.37954095,39226.0,39221.0,0.16517031]
[1645883291385,0.38528848,39226.0,39221.0,0.16517031]
[1645883292186,0.0514,39226.0,39221.0,0.16517031]
[1645883292389,0.33388848,39225.0,39221.0,0.16517031]